bitfinex/quotes_ETHUSD_20241022
["timestamp","ask_amount","ask_price","bid_price","bid_amount"]
[1729593527549,4.57367,2635.5,2635.2,0.12631746]
[1729593527744,5.90451939,2635.5,2635.0,4.302878]
[1729593527950,5.90451939,2635.5,2635.1,0.12637831]
[1729593528179,0.7793,2635.5,2635.2,3.79473]
[1729593528353,0.7793,2635.5,2635.2,3.92104746]
[1729593528673,2.11014939,2635.5,2635.2,4.65032771]
[1729593528992,2.11014939,2635.5,2635.2,0.85559771]
[1729593529147,1.33084939,2635.4,2635.2,0.12631746]
[1729593529347,1.33084939,2635.3,2634.8,4.61686]
[1729593529673,1.33084939,2635.2,2634.9,0.12650003]
[1729593529973,1.33084939,2635.3,2634.9,0.12650003]
[1729593530272,7.58914,2635.4,2634.9,1.42103616]
[1729593530480,3.79468,2635.3,2634.9,0.12650003]
[1729593535605,4.57372,2635.5,2634.9,0.12650003]
[1729593535830,3.79452,2635.4,2634.9,3.92169003]
[1729593536139,3.79452,2635.4,2634.9,0.12650003]
[1729593536439,3.79452,2635.4,2634.9,3.92166003]
[1729593538288,4.57372,2635.5,2635.0,3.79503]
[1729593538728,4.57372,2635.5,2635.1,0.12599211]
[1729593539094,3.79457,2635.4,2635.1,0.12599211]
[1729593539410,3.79457,2635.4,2634.9,3.79514]
[1729593539721,3.79457,2635.4,2635.2,0.12593126]
[1729593540032,3.79457,2635.4,2635.3,0.12587042]
[1729593540216,3.79457,2635.4,2634.9,7.59028]
[1729593540430,4.57372,2635.5,2635.3,0.12587042]
[1729593540739,3.79449,2635.4,2634.9,3.7952]
[1729593541733,0.8113,2635.8,2635.0,0.7949]
[1729593541907,4.60533,2635.8,2635.1,3.79492]
[1729593542110,4.60533,2635.8,2635.3,3.79463]
[1729593542531,3.79411,2635.7,2635.1,3.79481]
[1729593542730,3.7946,2635.4,2634.7,3.7954]
[1729593542897,4.62178,2635.2,2634.8,0.7528]
[1729593543335,3.79493,2635.1,2634.8,0.7528]
[1729593544014,3.79493,2635.1,2634.5,3.79568]
[1729593544015,3.79493,2635.1,2634.5,4.60728]
[1729593544349,3.79495,2635.1,2634.5,4.60728]
[1729593544533,3.79680458,2635.2,2634.5,0.8116]
[1729593544735,3.79522,2634.9,2634.5,0.8116]
[1729593545411,3.79492,2635.1,2634.5,0.8116]
[1729593545412,3.79508,2635.0,2634.5,0.8116]
[1729593545614,3.79492,2635.1,2634.5,4.60731]
[1729593546031,4.62178,2635.2,2634.6,3.79561]
[1729593546348,4.62178,2635.2,2634.6,4.64349308]
[1729593547043,3.79499,2635.1,2634.6,0.84788308]
[1729593547505,3.79507,2635.0,2634.5,4.60728]
[1729593547701,3.79507,2635.0,2634.7,0.12586421]
[1729593547906,3.79507,2635.0,2634.6,0.12592508]
[1729593548108,3.79507,2635.0,2634.8,0.12580334]
[1729593548413,3.79521,2634.9,2634.5,0.8116]
[1729593548634,3.79521,2634.9,2634.4,3.79592]
[1729593548806,0.7728,2634.8,2634.4,3.79592]
[1729593549364,4.56823,2634.8,2634.3,0.8007]
[1729593549502,3.79559,2634.7,2634.3,0.8007]
[1729593550515,3.79559,2634.7,2634.1,3.79624]
[1729593550516,3.79566,2634.6,2634.1,0.8134]
[1729593550837,3.79566,2634.6,2634.1,1.57439]
[1729593551641,3.79566,2634.6,2634.0,6.79648]
[1729593552239,3.79566,2634.6,2634.0,3.0]
[1729593552472,3.79586,2634.5,2634.0,3.0]
[1729593552643,3.79586,2634.5,2633.9,4.5859]
[1729593553431,3.79566,2634.6,2633.9,4.5859]
[1729593553634,3.79586,2634.5,2634.0,0.46618261]
[1729593554447,3.79586,2634.5,2634.0,4.26268261]
[1729593557134,7.59142,2634.6,2634.0,4.26268261]
[1729593557330,3.79566,2634.6,2634.0,4.26268261]
[1729593557672,3.79586,2634.5,2634.0,4.26267261]
[1729593557892,3.79586,2634.5,2634.1,0.88485726]
[1729593559074,3.79586,2634.5,2633.9,4.5859]
[1729593559075,4.57463,2634.4,2633.9,4.583]
[1729593560768,0.7787,2634.4,2633.9,8.37958]
[1729593561144,0.7787,2634.4,2633.9,4.583]
[1729593561375,0.7787,2634.4,2633.9,8.37957]
[1729593561954,0.7787,2634.4,2633.9,4.583]
[1729593562254,0.7787,2634.4,2634.0,1.32991964]
[1729593562666,4.6102,2634.7,2634.3,1.32991964]
[1729593562936,0.8147,2634.7,2634.2,5.87605964]
[1729593563058,0.8147,2634.7,2634.4,0.12648257]
[1729593563386,0.8147,2634.7,2634.5,0.12642169]
[1729593563551,0.8147,2634.7,2634.3,3.79606]
[1729593563751,0.8147,2634.7,2634.4,0.12648257]
[1729593564481,4.61028,2634.7,2634.4,0.12648257]
[1729593564692,4.61028,2634.7,2634.2,1.3502611]
[1729593564891,4.61028,2634.7,2634.5,0.12642169]
[1729593565080,4.61028,2634.7,2634.2,0.75]
[1729593565291,4.61028,2634.7,2634.6,0.12636081]
[1729593565500,4.61028,2634.7,2634.2,0.75]
[1729593565870,4.61028,2634.7,2634.3,0.12654346]
[1729593566073,4.61028,2634.7,2634.2,0.75]
[1729593566270,4.61028,2634.7,2634.4,0.12648257]
[1729593566504,4.61028,2634.7,2634.3,0.12654346]
[1729593566771,4.61028,2634.7,2634.4,0.12648257]
[1729593566966,4.61028,2634.7,2634.2,0.75]
[1729593567214,3.79572,2634.6,2634.3,0.12654346]
[1729593567412,3.79572,2634.6,2634.2,0.75]
[1729593567617,3.79595,2634.4,2634.0,0.7982]
[1729593567791,3.79595,2634.4,2633.8,7.59497]
[1729593567792,0.8217,2634.3,2633.8,7.59497]
[1729593568173,4.61781,2634.3,2633.8,7.59497]
[1729593568413,4.61781,2634.3,2633.9,1.139181]
[1729593569111,0.8217,2634.3,2633.9,1.139181]
[1729593571117,4.61777,2634.3,2633.9,1.139181]
[1729593572577,3.79639,2634.1,2633.3,4.60789]
[1729593572793,3.79639,2634.1,2633.6,3.797]
[1729593572988,3.79639,2634.1,2633.7,0.767]
[1729593573192,3.79651,2634.0,2633.7,0.767]
[1729593575424,3.79274207,2634.3,2633.5,0.7517]
[1729593575629,3.79274207,2634.3,2632.9,6.76908207]
[1729593575630,3.79732,2633.5,2633.0,0.7517]
[1729593575831,3.79703,2633.7,2633.0,4.54956]
[1729593575989,3.79737,2633.4,2633.0,0.7517]
[1729593577544,3.79737,2633.4,2633.1,0.12794304]
[1729593578103,3.79723,2633.5,2633.1,0.12794304]
[1729593578941,4.57333,2633.5,2633.1,0.12794304]
[1729593579899,0.7761,2633.5,2633.1,0.12794304]
[1729593580396,4.57332,2633.5,2633.1,0.12794304]
[1729593582203,3.79709,2633.6,2633.1,4.39344434]
[1729593582647,4.56044,2633.7,2633.1,4.39344434]
[1729593585213,3.79709,2633.6,2633.1,0.59569434]
[1729593585539,0.8251,2633.2,2633.1,0.12794304]
[1729593585961,0.8251,2633.2,2632.7,4.58001]
[1729593586446,4.62276,2633.2,2632.8,0.12863131]
[1729593586644,0.8251,2633.2,2632.7,4.58001]
[1729593586846,0.8251,2633.2,2632.9,0.12857035]
[1729593587046,4.62277,2633.2,2632.7,1.919558]
[1729593587352,4.62277,2633.2,2633.0,0.1285094]
[1729593587522,4.62277,2633.2,2632.7,0.7817]
[1729593587704,4.62277,2633.2,2633.1,0.12844845]
[1729593587904,5.07695454,2633.2,2632.5,7.59717]
[1729593588105,3.79781,2633.1,2632.5,3.79857]
[1729593588449,3.79781,2633.1,2632.6,0.12889698]
[1729593589981,3.79762,2633.3,2632.7,4.5782]
[1729593590123,3.79762,2633.3,2632.7,8.3765]
[1729593590324,4.61947,2633.4,2632.8,3.92702916]
[1729593590629,4.61947,2633.4,2632.8,4.77755208]
[1729593591253,3.79752,2633.3,2633.0,0.7518]
[1729593591658,3.79752,2633.3,2633.1,0.1286963]
[1729593592555,3.79726,2633.5,2633.1,0.1286963]
[1729593592831,3.79737,2633.4,2633.1,0.1286963]
[1729593593153,3.79751,2633.3,2633.1,0.1286963]
[1729593593671,3.79751,2633.3,2633.2,0.12863536]
[1729593593877,3.79751,2633.3,2632.8,5.46088292]
[1729593594064,3.79751,2633.3,2633.2,0.12863536]
[1729593594378,3.79737,2633.4,2632.9,0.92591829]
[1729593594543,3.79737,2633.4,2633.2,0.12863536]
[1729593594743,3.79737,2633.4,2632.8,4.61029]
[1729593594951,3.79737,2633.4,2633.3,0.12857442]
[1729593595152,3.79737,2633.4,2632.8,8.40845]
[1729593595333,3.79737,2633.4,2633.3,0.12857442]
[1729593595533,3.79737,2633.4,2632.9,3.79808]
[1729593595734,3.79737,2633.4,2633.3,0.12857442]
[1729593595935,3.79722,2633.5,2633.0,0.840837]
[1729593596130,3.79722,2633.5,2633.3,0.12857442]
[1729593596382,3.79722,2633.5,2633.0,0.840837]
[1729593596582,3.79722,2633.5,2633.4,0.12851348]
[1729593596790,3.79722,2633.5,2633.0,0.840837]
[1729593596963,3.79722,2633.5,2633.4,0.12855809]
[1729593597158,3.79722,2633.5,2633.1,0.4638857]
[1729593597358,3.79722,2633.5,2633.4,0.12855313]
[1729593597568,3.79722,2633.5,2633.1,0.4638857]
[1729593597773,3.79722,2633.5,2633.4,0.12855313]
[1729593597978,3.7974,2633.4,2633.0,0.840837]
[1729593598278,3.7974,2633.4,2633.1,0.4638857]
[1729593600689,3.79752,2633.3,2633.1,0.4638857]
[1729593601597,3.79737,2633.4,2633.1,0.4638857]
[1729593603156,5.1283422,2633.4,2633.1,0.4638857]
[1729593603757,3.79737,2633.4,2633.1,0.4638857]
[1729593604685,5.1283422,2633.4,2633.1,0.4638857]
[1729593604858,5.1283422,2633.4,2632.9,3.79802]
[1729593605058,3.79737,2633.4,2632.9,5.1289922]
[1729593605258,5.1283422,2633.4,2632.9,3.79802]
[1729593605483,3.79737,2633.4,2632.9,3.79802]
[1729593606662,5.1283422,2633.4,2632.9,3.79802]
[1729593606991,5.1283422,2633.4,2633.0,0.59411922]
[1729593607601,5.1283422,2633.4,2633.1,0.12872108]
[1729593608158,3.79636,2634.1,2633.3,5.1283922]
[1729593608498,3.79672,2633.9,2633.4,5.25686541]
[1729593608667,5.9416622,2634.0,2633.5,0.7653]
[1729593608668,3.79681,2633.8,2633.5,0.7653]
[1729593608869,3.79681,2633.8,2633.5,0.89378228]
[1729593609073,4.56488,2633.6,2633.5,0.12848228]
[1729593609288,4.56488,2633.6,2632.2,2.7759798]
[1729593609289,3.79759,2633.3,2633.0,0.7653]
[1729593609455,3.79759,2633.3,2633.1,0.12872602]
[1729593613703,7.59518,2633.3,2633.1,0.12872602]
[1729593613886,3.79759,2633.3,2633.1,0.12872602]
[1729593614216,3.79766,2633.2,2633.1,0.12872602]
[1729593614428,5.1286322,2633.2,2632.8,0.7503]
[1729593614627,4.60138,2632.9,2632.5,0.7503]
[1729593614982,4.60138,2632.9,2632.5,4.54893]
[1729593615183,4.60138,2632.9,2632.5,1.71817022]
[1729593615384,3.79831,2632.8,2632.5,1.71817022]
[1729593615597,3.79831,2632.8,2632.5,0.7503]
[1729593615927,4.60138,2632.9,2632.5,0.7503]
[1729593616092,5.9323522,2632.9,2632.5,0.7503]
[1729593616291,5.9323422,2632.9,2632.5,0.7503]
[1729593616501,9.7305622,2632.9,2632.5,0.7503]
[1729593616702,4.60137,2632.9,2632.5,0.7503]
[1729593617002,5.9323422,2632.9,2632.5,0.7503]
[1729593617214,1.3309722,2632.7,2632.2,3.799]
[1729593617418,3.79883,2632.4,2632.1,1.09096999]
[1729593617586,5.1298022,2632.4,2632.1,0.809]
[1729593617787,1.3309722,2632.3,2631.9,4.61406]
[1729593617988,5.1298022,2632.4,2631.9,5.58852122]
[1729593618241,5.1298022,2632.4,2631.9,1.78906122]
[1729593618536,3.79895,2632.3,2631.9,0.8146]
[1729593618835,5.1300722,2632.2,2631.9,0.8146]
[1729593619036,3.7991,2632.2,2631.9,0.8146]
[1729593619186,5.1299222,2632.3,2631.9,0.8146]
[1729593619389,8.9290022,2632.3,2631.9,0.8146]
[1729593619593,2.1369722,2632.2,2631.6,3.79986]
[1729593619905,3.79942,2632.0,2631.7,0.758]
[1729593620233,2.1369722,2632.2,2631.7,4.55781]
[1729593620419,0.806,2632.2,2631.7,4.55781]
[1729593620795,0.806,2632.2,2631.7,0.758]
[1729593621710,3.79926,2632.1,2631.7,0.758]
[1729593622410,0.806,2632.2,2631.7,0.758]
[1729593622411,4.6051,2632.2,2631.7,0.758]
[1729593622592,8.40433,2632.2,2631.8,0.12606204]
[1729593622793,8.40433,2632.2,2631.7,0.758]
[1729593623235,4.6051,2632.2,2631.8,0.12606204]
[1729593623595,4.6051,2632.2,2631.7,0.758]
[1729593623789,4.6051,2632.2,2631.9,0.12600103]
[1729593624052,4.6051,2632.2,2631.8,0.12606204]
[1729593624227,4.6051,2632.2,2632.0,0.12594003]
[1729593624422,4.6051,2632.2,2631.9,0.12600103]
[1729593624743,3.79924,2632.1,2632.0,0.12594003]
[1729593625155,3.79924,2632.1,2631.6,3.79988]
[1729593625308,3.79924,2632.1,2632.0,0.12594996]
[1729593625501,3.79924,2632.1,2631.6,3.79988]
[1729593625696,3.79924,2632.1,2631.7,0.12613297]
[1729593626232,4.6051,2632.2,2631.7,0.12613297]
[1729593626433,3.79934,2632.1,2631.4,3.80015]
[1729593626599,7.59927,2631.9,2631.4,3.80015]
[1729593626804,7.59927,2631.9,2631.5,0.12625499]
[1729593627353,0.7864,2631.8,2631.5,0.12625499]
[1729593629337,4.58608,2631.8,2631.5,0.12625499]
[1729593629656,4.58608,2631.8,2631.3,4.57826]
[1729593629964,4.58608,2631.8,2631.4,0.837871]
[1729593630125,4.58608,2631.8,2631.4,0.96418702]
[1729593630310,8.38584,2631.8,2631.4,0.12631602]
[1729593630509,3.79984,2631.7,2631.4,0.12631602]
[1729593630956,3.80011,2631.5,2631.4,0.12631602]
[1729593631363,3.8004,2631.3,2630.9,3.80098]
[1729593631545,3.80011,2631.5,2631.4,0.12275877]
[1729593631854,3.80011,2631.5,2630.9,3.80098]
[1729593632209,3.79998,2631.6,2631.0,0.16209318]
[1729593632463,3.80028,2631.4,2631.0,0.16209318]
[1729593633008,3.79998,2631.6,2631.0,0.16209318]
[1729593633216,3.79998,2631.6,2631.1,4.6077]
[1729593633559,3.79998,2631.6,2631.2,0.16196813]
[1729593634424,7.60003,2631.6,2631.2,0.16196813]
[1729593634631,3.79998,2631.6,2631.2,0.16196813]
[1729593635255,7.60009,2631.6,2631.2,0.16196813]
[1729593635765,3.79998,2631.6,2631.2,0.16196813]
[1729593636350,7.60003,2631.6,2631.2,0.16196813]
[1729593636527,3.79998,2631.6,2631.2,0.16196813]
[1729593636731,7.60004,2631.6,2631.2,0.16196813]
[1729593637209,3.79998,2631.6,2631.2,0.16196813]
[1729593637412,3.80012,2631.5,2631.2,0.16196813]
[1729593638101,3.8004,2631.3,2631.2,0.16196813]
[1729593638752,3.80023,2631.5,2631.2,0.16196813]
[1729593639158,3.80027,2631.4,2631.2,0.16196813]
[1729593642025,3.8004,2631.3,2631.2,0.16196813]
[1729593642818,3.80054,2631.2,2630.8,4.63351]
[1729593644936,3.80048,2631.3,2630.8,4.63351]
[1729593645232,3.80048,2631.3,2630.8,6.86299827]
[1729593645851,4.62127,2631.4,2630.9,5.13397929]
[1729593646076,3.80027,2631.4,2630.9,5.13397929]
[1729593646878,3.75027,2631.4,2630.9,5.13397929]
[1729593647083,3.8004,2631.3,2630.9,1.33310929]
[1729593647282,3.75027,2631.4,2630.9,2.01940112]
[1729593647592,3.75027,2631.4,2630.9,5.82033112]
[1729593648155,7.55062,2631.4,2630.9,4.48722183]
[1729593648356,7.55062,2631.4,2630.9,5.82033112]
[1729593650208,3.75027,2631.4,2630.9,5.82033112]
[1729593650409,7.55065,2631.4,2630.9,5.82033112]
[1729593651115,3.8004,2631.3,2630.9,4.48722183]
[1729593651285,3.8004,2631.3,2630.9,0.68629183]
[1729593651676,3.75027,2631.4,2630.9,4.48720183]
[1729593651879,3.75027,2631.4,2630.9,5.82031112]
[1729593652081,3.75027,2631.4,2630.9,4.48720183]
[1729593652296,5.08337929,2631.4,2631.0,0.66527111]
[1729593652499,5.08337929,2631.4,2631.1,0.1625007]
[1729593652500,3.75027,2631.4,2631.1,0.1625007]
[1729593652912,1.33310929,2631.5,2631.1,0.1625007]
[1729593653097,3.80025,2631.4,2631.1,0.1625007]
[1729593653426,3.80041,2631.3,2631.1,0.1625007]
[1729593654119,3.80054,2631.2,2631.1,0.1625007]
[1729593655021,3.80054,2631.2,2630.8,0.8324]
[1729593655226,3.80054,2631.2,2631.1,0.1625007]
[1729593655410,3.80075,2631.1,2630.8,0.8324]
[1729593656289,5.94954929,2631.2,2630.5,4.59938]
[1729593656492,5.94954929,2631.2,2630.6,5.59445729]
[1729593656493,3.80081,2631.1,2630.6,5.59445729]
[1729593656692,3.80081,2631.1,2630.7,1.33310929]
[1729593657925,3.80059,2631.2,2630.9,0.8121]
[1729593660234,3.80075,2631.1,2630.9,0.8121]
[1729593660431,5.13361929,2631.3,2630.9,0.8121]
[1729593661238,3.80056,2631.2,2630.9,0.8121]
[1729593661689,5.13361929,2631.3,2630.9,0.8121]
[1729593661891,3.80019,2631.5,2631.0,5.13384929]
[1729593662417,3.80019,2631.5,2631.0,3.80074]
[1729593662930,5.13329929,2631.5,2630.9,6.54068122]
[1729593663086,3.80027,2631.4,2630.9,9.00846193]
[1729593663411,3.80027,2631.4,2630.9,10.34157122]
[1729593663613,3.80019,2631.5,2631.0,6.16806641]
[1729593663831,3.80019,2631.5,2631.1,0.7911]
[1729593664760,2.15210929,2631.6,2631.0,6.16806641]
[1729593664761,0.7917,2631.8,2631.4,1.33310929]
[1729593664973,0.7917,2632.0,2631.6,3.79995]
[1729593665117,0.7917,2632.2,2631.7,1.33310929]
[1729593665464,3.81796055,2632.3,2631.8,3.79966]
[1729593665753,4.59054,2632.4,2631.8,3.79966]
[1729593665975,4.59054,2632.4,2631.7,1.33310929]
[1729593665976,3.79911,2632.2,2631.7,1.33310929]
[1729593666121,3.7994,2632.0,2631.6,4.77599393]
[1729593666550,5.13237929,2632.1,2631.6,4.77599393]
[1729593667658,5.13237929,2632.1,2631.7,0.16209099]
[1729593668231,3.79927,2632.1,2631.7,0.16209099]
[1729593668457,7.5983,2632.2,2631.7,4.95421402]
[1729593668930,3.79911,2632.2,2631.7,3.96190099]
[1729593669267,3.79911,2632.2,2631.8,3.79967]
[1729593669552,3.79911,2632.2,2631.9,0.16147123]
[1729593670055,3.79896,2632.3,2631.9,0.95577123]
[1729593670285,0.7917,2632.4,2631.9,0.95577123]
[1729593670558,4.59052,2632.4,2631.9,0.95577123]
[1729593670921,4.59052,2632.4,2631.9,4.75526123]
[1729593671351,8.38947,2632.4,2631.9,0.95577123]
[1729593671749,4.59052,2632.4,2631.9,0.95577123]
[1729593671918,3.79897,2632.3,2631.9,0.95577123]
[1729593672123,3.79876,2632.5,2631.9,5.23081835]
[1729593672344,3.79876,2632.5,2632.0,3.79929]
[1729593672544,4.63096,2632.6,2632.1,3.96054627]
[1729593673818,3.79869,2632.5,2632.1,0.16134627]
[1729593674014,3.79883,2632.4,2632.1,0.16134627]
[1729593674232,3.79883,2632.4,2631.9,4.59381]
[1729593674432,3.7989,2632.4,2632.2,0.16125412]
[1729593674671,3.79909,2632.3,2631.7,4.61813]
[1729593675160,3.7988,2632.5,2632.0,0.8184]
[1729593675960,3.79891,2632.4,2631.8,0.7863]
[1729593676163,3.79925,2632.1,2631.8,0.7863]
[1729593676334,3.79925,2632.1,2631.6,4.58623]
[1729593677475,3.79925,2632.1,2631.7,3.7998]
[1729593678643,4.55961,2632.2,2631.7,3.7998]
[1729593678853,4.55961,2632.2,2631.7,4.638362]
[1729593679136,4.55961,2632.2,2631.7,3.79975]
[1729593682652,4.55961,2632.2,2631.8,0.1614348]
[1729593682967,4.55961,2632.2,2631.7,3.79975]
[1729593683139,4.55961,2632.2,2631.8,0.1614348]
[1729593683342,4.55961,2632.2,2631.7,3.79975]
[1729593683852,4.55961,2632.2,2631.8,0.1614348]
[1729593684179,3.79911,2632.2,2631.7,7.5995]
[1729593684383,3.79904,2632.3,2631.8,4.61615]
[1729593684542,3.79904,2632.3,2631.8,4.7775848]
[1729593685264,3.79912,2632.2,2631.8,0.9780348]
[1729593694771,8.93086933,2632.1,2631.8,0.9780348]
[1729593694975,3.79939,2632.0,2631.8,0.9780348]
[1729593695674,8.93059933,2632.2,2631.8,0.9780348]
[1729593696278,3.79911,2632.2,2631.8,0.9780348]
[1729593701881,3.79911,2632.2,2631.8,4.7777048]
[1729593704631,5.13121933,2632.3,2631.8,4.7777048]
[1729593707735,3.79896,2632.3,2631.8,4.7777048]
[1729593708538,5.13121933,2632.3,2631.8,4.7777048]
[1729593708700,3.7991,2632.2,2631.8,4.7777048]
[1729593710754,5.13178933,2631.9,2631.8,0.1614348]
[1729593711103,3.79989,2631.7,2631.3,0.7922]
[1729593711309,3.79997,2631.6,2631.3,0.7922]
[1729593711523,5.13221933,2631.6,2631.3,0.7922]
[1729593711950,3.79996,2631.6,2631.3,0.7922]
[1729593712762,3.79996,2631.6,2631.4,0.16165018]
[1729593713349,3.80011,2631.5,2631.4,0.16165018]
[1729593719153,3.80011,2631.5,2631.1,0.807]
[1729593719351,3.79996,2631.6,2631.2,1.33225933]
[1729593719563,3.79996,2631.6,2631.2,1.49423737]
[1729593720257,3.7991,2632.2,2631.7,3.79968]
[1729593720463,3.7989,2632.4,2632.0,0.8085]
[1729593720665,5.13088933,2632.6,2632.0,5.94006933]
[1729593720941,3.79875,2632.5,2632.1,0.16165302]
[1729593721455,5.13100933,2632.5,2632.1,0.16165302]
[1729593721859,3.79875,2632.5,2632.1,0.16165302]
[1729593724186,3.81724055,2632.8,2632.4,1.33225933]
[1729593724358,3.79804,2633.0,2632.5,1.49366248]
[1729593724557,3.79817,2632.9,2632.5,0.16140315]
[1729593724767,5.13042933,2632.9,2632.5,0.16140315]
[1729593725164,5.13013933,2633.1,2632.6,4.62142]
[1729593725364,1.33225933,2633.1,2632.7,0.16127825]
[1729593725598,3.79796,2633.0,2632.7,0.16127825]
[1729593725800,0.8067,2633.3,2632.7,0.16127825]
[1729593725801,5.13000933,2633.2,2632.7,0.16127825]
[1729593726009,3.79789,2633.1,2632.7,0.16127825]
[1729593726188,5.13014933,2633.1,2632.7,0.16127825]
[1729593727089,3.79798,2633.0,2632.7,0.16127825]
[1729593730366,3.79782,2633.1,2632.7,0.16127825]
[1729593730963,5.13001933,2633.2,2632.7,0.16127825]
[1729593731168,3.79776,2633.2,2632.7,1.49353758]
[1729593731369,3.79776,2633.2,2632.8,0.8209]
[1729593731563,3.79776,2633.2,2632.9,0.16013944]
[1729593731770,3.7978,2633.1,2632.9,0.16013944]
[1729593734970,7.59571,2633.1,2632.9,0.16013944]
[1729593735211,3.7978,2633.1,2632.9,0.16013944]
[1729593735951,3.79772,2633.2,2632.9,0.16013944]
[1729593736114,3.79758,2633.3,2632.9,0.83244099]
[1729593736412,5.12983933,2633.3,2632.9,0.83244099]
[1729593736922,3.79758,2633.3,2632.9,0.83244099]
[1729593737098,3.79758,2633.3,2633.0,0.40750364]
[1729593737307,5.12983933,2633.3,2633.0,0.40750364]
[1729593737611,5.12983933,2633.3,2633.1,0.16001457]
[1729593738382,8.92743933,2633.3,2633.1,0.16001457]
[1729593738609,8.92743933,2633.3,2632.9,0.67230155]
[1729593738810,5.12983933,2633.3,2633.0,0.160077]
[1729593739310,8.92742933,2633.3,2633.0,0.160077]
[1729593739478,3.79758,2633.3,2633.0,0.160077]
[1729593739711,3.79758,2633.3,2633.0,0.45863079]
[1729593740271,3.79766,2633.2,2633.0,0.45863079]
[1729593744621,7.59541,2633.2,2633.0,0.45863079]
[1729593745027,7.59541,2633.2,2633.0,0.160077]
[1729593745227,7.59541,2633.2,2632.8,0.8209]
[1729593745387,7.59541,2633.2,2632.9,0.15997137]
[1729593746427,3.7978,2633.1,2632.9,0.15997137]
[1729593748285,5.13005933,2633.1,2632.9,0.15997137]
[1729593748532,3.7978,2633.1,2632.9,0.15997137]
[1729593751426,5.13005933,2633.1,2632.9,0.15997137]
[1729593753447,3.7978,2633.1,2632.9,0.15997137]
[1729593756466,3.79794,2633.0,2632.9,0.15997137]
[1729593762338,8.92795933,2633.1,2632.9,0.15997137]
[1729593762584,7.5957,2633.1,2632.9,0.15997137]
[1729593762945,3.79782,2633.1,2632.9,0.15997137]
[1729593763730,7.59574,2633.1,2632.9,0.15997137]
[1729593763963,7.59571,2633.1,2632.9,0.15997137]
[1729593765084,3.79794,2633.0,2632.9,0.15997137]
[1729593765253,5.13019933,2633.0,2632.9,0.15997137]
[1729593766678,3.79828,2632.8,2632.5,0.816]
[1729593766882,5.13053933,2632.8,2632.5,0.816]
[1729593767082,5.13053933,2632.8,2632.6,0.15993626]
[1729593767242,3.79828,2632.8,2632.6,0.15993626]
[1729593769441,7.59607,2633.0,2632.6,0.15993626]
[1729593769684,3.79803,2633.0,2632.6,0.15993626]
[1729593769854,3.79809,2632.9,2632.6,0.77823251]
[1729593770184,3.79809,2632.9,2632.7,0.8245]
[1729593770491,3.79809,2632.9,2632.8,0.15988057]
[1729593770886,3.79809,2632.9,2632.7,0.8245]
[1729593771094,3.79809,2632.9,2632.8,0.15988057]
[1729593771570,3.79809,2632.9,2632.7,0.8245]
[1729593771888,3.79809,2632.9,2632.8,0.15988057]
[1729593772300,3.79809,2632.9,2632.7,0.8245]
[1729593772589,3.79809,2632.9,2632.8,0.15988057]
[1729593772969,3.79809,2632.9,2632.7,0.8245]
[1729593773174,3.79809,2632.9,2632.8,0.15988057]
[1729593773578,3.79796,2633.0,2632.7,0.8245]
[1729593773773,3.79796,2633.0,2632.8,0.15988057]
[1729593773972,3.79796,2633.0,2632.7,0.8245]
[1729593774171,7.59601,2633.0,2632.7,0.8245]
[1729593774383,7.59601,2633.0,2632.8,0.15988057]
[1729593774761,7.59601,2633.0,2632.7,0.8245]
[1729593774987,3.79796,2633.0,2632.9,0.15981813]
[1729593775189,3.79796,2633.0,2632.8,0.15988057]
[1729593775403,3.79751,2633.3,2632.9,0.15981813]
[1729593775694,3.79773,2633.2,2632.7,4.62286]
[1729593775853,3.79773,2633.2,2633.0,0.15975569]
[1729593776177,5.12998933,2633.2,2632.7,4.62286]
[1729593776378,5.12998933,2633.2,2633.1,0.15969326]
[1729593776756,5.12998933,2633.2,2632.7,4.62286]
[1729593776958,5.12998933,2633.2,2632.8,0.15988057]
[1729593777281,5.12998933,2633.2,2632.7,4.62286]
[1729593777486,5.12998933,2633.2,2632.9,0.15981813]
[1729593777680,5.12998933,2633.2,2632.8,1.00201057]
[1729593777924,1.33225933,2633.1,2633.0,0.15975569]
[1729593778124,1.33225933,2633.1,2632.9,0.15981813]
[1729593778422,1.33225933,2633.1,2633.0,0.15975569]
[1729593778584,1.33225933,2633.1,2632.8,0.84213]
[1729593778784,1.33225933,2633.1,2632.9,0.15981813]
[1729593780131,5.12998933,2633.2,2632.9,0.15981813]
[1729593780431,1.33225933,2633.2,2632.9,0.15981813]
[1729593780585,3.79787,2633.1,2632.9,0.15981813]
[1729593780786,3.79787,2633.1,2632.7,0.8245]
[1729593781097,3.79787,2633.1,2632.8,0.6221173]
[1729593782434,3.79767,2633.2,2632.8,0.6221173]
[1729593782798,5.12992933,2633.2,2632.8,0.6221173]
[1729593784524,3.79762,2633.3,2632.8,4.4203073]
[1729593784683,3.79762,2633.3,2632.9,0.90431073]
[1729593784897,5.12987933,2633.3,2632.9,0.90431073]
[1729593785231,8.92748933,2633.3,2633.0,0.15969142]
[1729593785709,5.12993933,2633.2,2633.0,0.15969142]
[1729593786240,5.12993933,2633.2,2632.8,0.462301]
[1729593786402,5.12993933,2633.2,2632.9,0.66826296]
[1729593786806,3.79768,2633.2,2632.9,0.66826296]
[1729593787536,5.12986933,2633.3,2632.9,0.66826296]
[1729593787831,3.79761,2633.3,2633.0,0.7873]
[1729593787987,5.12986933,2633.3,2633.1,0.15962899]
[1729593788599,8.92749933,2633.3,2633.1,0.15962899]
[1729593788939,3.79766,2633.2,2633.1,0.15962899]
[1729593791215,5.12991933,2633.2,2633.1,0.15962899]
[1729593791719,5.12991933,2633.2,2632.8,0.7873]
[1729593791915,5.12991933,2633.2,2633.1,0.15960923]
[1729593792117,5.12991933,2633.2,2632.8,0.7873]
[1729593792313,5.12991933,2633.2,2633.1,0.15960923]
[1729593792530,5.12991933,2633.2,2632.8,0.7873]
[1729593792742,5.12991933,2633.2,2633.1,0.15960923]
[1729593793209,5.12991933,2633.2,2632.8,0.7873]
[1729593793452,3.79766,2633.2,2632.9,0.15973409]